Workbook

Sheet AR
M1: مستحق
D2: =SUBTOTAL(9,D4:D505) -> 159645 | M2: غير مستحق
B3: التاريخ | C3: إسم العميل | D3: قيمه الشيك | E3: تاريخ الإستحقاق | F3: رقم الشيك | G3: البنك المسحوب عليه | H3: موقف الإستحقاق | I3: حاله الشيك | J3: إيداع البنك | K3: تاريخ الحافظه | L3: ملاحظات
A4: مرتد | B4: 2020-01-29 | C4: 1 | D4: 150 | E4: 2020-02-28 | F4: 1590000051008 | G4: البنك الاهلي المصري NBE | H4: =IF(E4>TODAY(),"غير مستحق ","مستحق ") -> مستحق | I4: مرتد | J4: AAIB | K4: 2020-08-13
A5: مرتد | B5: 2020-09-12 | C5: 2 | D5: 151 | E5: 2020-10-30 | F5: 19590011069812 | G5: البنك الاهلي المصري NBE | H5: مستحق | I5: مرتد | J5: AAIB | K5: 2020-11-01
B6: 2021-11-04 | C6: 3 | D6: 152 | E6: 2021-09-30 | F6: 52095188 | G6: بنك قطر الوطني QNB | H6: مستحق | I6: محصل | J6: FAB | K6: 2021-11-04 | Q6: محصل | R6: AAIB | T6: بنك مصر Banqe Misr
B7: 2021-11-20 | C7: 4 | D7: 153 | E7: 2021-10-14 | F7: 90267267 | G7: بنك مصر Banqe Misr | H7: مستحق | I7: محصل | J7: Misr | K7: 2021-11-21 | Q7: مرتد | R7: ADIB | T7: البنك الاهلي المصري NBE
B8: 2021-11-01 | C8: 5 | D8: 154 | E8: 2021-10-25 | F8: 51679386 | G8: بنك قطر الوطني QNB | H8: مستحق | I8: محصل | J8: FAB | K8: 2021-11-01 | R8: ADIB-Inv. | T8: بنك القاهرة Banque De Cairo
B9: 2021-11-01 | C9: 6 | D9: 155 | E9: 2021-10-26 | F9: 0040383074 | G9: البنك الاهلي الكويتي ABK | H9: مستحق | I9: محصل | J9: FAB | K9: 2021-11-04 | R9: Misr | T9: بنك الاسكندرية Alex Bank
B10: 2021-11-09 | C10: 7 | D10: 156 | E10: 2021-10-30 | F10: 68841 | G10: مصرف ابوظبي الاسلامي ADIB | H10: مستحق | I10: محصل | J10: ADIB | K10: 2021-11-09 | R10: FAB | T10: البنك التجاري الدولي CIB
B11: 2021-11-01 | C11: 8 | D11: 157 | E11: 2021-10-31 | F11: 000518079357 | G11: البنك التجاري الدولي CIB | H11: مستحق | I11: محصل | J11: FAB | K11: 2021-11-04 | R11: Arab Bank | T11: الشركة المصرفية العربية الدولية SAIB
B12: 2021-11-09 | C12: 9 | D12: 158 | E12: 2021-10-31 | F12: 14536 | G12: بنك المشرق Mashreq Bank | H12: مستحق | I12: محصل | J12: FAB | K12: 2021-11-10 | R12: AlAhly | T12: بنك الموسسة العربية المصرفية ABC
B13: 2021-11-13 | C13: 10 | D13: 159 | E13: 2021-10-31 | F13: 51516247 | G13: بنك قطر الوطني QNB | H13: مستحق | I13: محصل | J13: ADIB | K13: 2021-11-14 | R13: QNB | T13: مصرف ابوظبي الاسلامي ADIB
B14: 2021-12-15 | C14: 11 | D14: 160 | E14: 2021-10-31 | F14: 521074404 | G14: البنك التجاري الدولي CIB | H14: مستحق | I14: محصل | J14: ADIB | K14: 2021-12-15 | R14: تحصيل نقدي | T14: البنك العربي الافريقي AAIB
B15: 2021-11-03 | C15: 12 | D15: 161 | E15: 2021-11-01 | F15: 5886000073031 | G15: البنك الاهلي المصري NBE | H15: مستحق | I15: محصل | J15: FAB | K15: 2021-11-04 | T15: بنك قطر الوطني QNB
B16: 2021-11-09 | C16: 13 | D16: 162 | E16: 2021-11-02 | F16: 519410949 | G16: البنك التجاري الدولي CIB | H16: مستحق | I16: محصل | J16: FAB | K16: 2021-11-09 | T16: بنك البركة AlBaraka
B17: 2021-11-09 | C17: 14 | D17: 163 | E17: 2021-11-02 | F17: 4308289 | G17: بنك البركة AlBaraka | H17: مستحق | I17: محصل | J17: FAB | K17: 2021-11-10 | T17: بنك فيصل الاسلامي Faisal Islamic
B18: 2021-11-09 | C18: 15 | D18: 164 | E18: 2021-11-03 | F18: 4308195 | G18: بنك البركة AlBaraka | H18: مستحق | I18: محصل | J18: FAB | K18: 2021-11-10 | T18: المصرف المتحدUnited Bank
A19: المصنع | B19: 2021-11-01 | C19: 16 | D19: 165 | E19: 2021-11-04 | F19: 51512672 | G19: بنك قطر الوطني QNB | H19: مستحق | I19: محصل | J19: FAB | K19: 2021-11-04 | T19: وفا بنك Attijariwafa Bank
B20: 2021-11-01 | C20: 17 | D20: 166 | E20: 2021-11-04 | F20: 67577477 | G20: بنك مصر Banqe Misr | H20: مستحق | I20: محصل | J20: Misr | K20: 2021-11-04 | T20: ميدبنك - مصر ايران MID Bamk
B21: 2021-11-13 | C21: 18 | D21: 167 | E21: 2021-11-05 | F21: 520488810 | G21: البنك التجاري الدولي CIB | H21: مستحق | I21: محصل | J21: ADIB | K21: 2021-11-14 | T21: بنك الامارات دبي الوطني Emirates NBD
B22: 2021-11-07 | C22: 19 | D22: 168 | E22: 2021-11-07 | F22: 11780000101926 | G22: البنك الاهلي المصري NBE | H22: مستحق | I22: محصل | J22: الأهلي المصري | K22: 2021-11-09 | T22: البنك العربي ARAB Bank
B23: 2021-11-09 | C23: 20 | D23: 169 | E23: 2021-11-08 | F23: 52003426 | G23: بنك قطر الوطني QNB | H23: مستحق | I23: محصل | J23: FAB | K23: 2021-11-09 | T23: بنك المشرق Mashreq Bank
B24: 2021-11-01 | C24: 21 | D24: 170 | E24: 2021-11-11 | F24: 51512673 | G24: بنك قطر الوطني QNB | H24: مستحق | I24: محصل | J24: FAB | K24: 2021-12-02 | T24: اتش اس بي سي HSBC
B25: 2021-11-13 | C25: 22 | D25: 171 | E25: 2021-11-11 | F25: 51832733 | G25: بنك قطر الوطني QNB | H25: مستحق | I25: محصل | J25: ADIB | K25: 2021-11-14 | T25: كريدي اجريكول Credit Agricole
B26: 2021-12-13 | C26: 23 | D26: 172 | E26: 2021-11-11 | F26: 90267564 | G26: بنك مصر Banqe Misr | H26: مستحق | I26: محصل | J26: Misr | K26: 2021-12-14 | T26: البنك الاهلي الكويتي ABK
B27: 2021-12-30 | C27: 24 | D27: 173 | E27: 2021-11-14 | F27: 1651188 | G27: البنك العربي ARAB Bank | H27: مستحق | I27: محصل | J27: ADIB-Inv. | K27: 2022-01-02 | T27: بنك قناة السويس Suze Canal Bank
B28: 2021-11-21 | C28: 25 | D28: 174 | E28: 2021-11-15 | F28: 2544 | G28: البنك الاهلي الكويتي ABK | H28: مستحق | I28: محصل | J28: AAIB | K28: 2021-11-23 | T28: بنك ابوظبي الاول FAB
B29: 2021-11-21 | C29: 26 | D29: 175 | E29: 2021-11-15 | F29: 9795 | G29: البنك الاهلي الكويتي ABK | H29: مستحق | I29: محصل | J29: AAIB | K29: 2021-11-23 | T29: بنك الاستثمار العربي AI Bank
B30: 2021-11-01 | C30: 27 | D30: 176 | E30: 2021-11-16 | F30: 51798151 | G30: بنك قطر الوطني QNB | H30: مستحق | I30: محصل | J30: FAB | K30: 2021-11-09 | T30: بنك التعمير و الاسكان HB Bank
B31: 2021-11-18 | C31: 28 | D31: 177 | E31: 2021-11-16 | F31: 4918657 | G31: بنك البركة AlBaraka | H31: مستحق | I31: محصل | J31: ADIB | K31: 2021-11-23 | T31: البنك المصري الخليجي EG Bank
B32: 2021-11-21 | C32: 29 | D32: 178 | E32: 2021-11-16 | F32: 67546902 | G32: بنك مصر Banqe Misr | H32: مستحق | I32: محصل | J32: Misr | K32: 2021-11-21 | T32: البنك الاهلي المتحد Ahli United Bank
B33: 2021-11-23 | C33: 30 | D33: 179 | E33: 2021-11-16 | F33: 91002549047 | G33: البنك التجاري الدولي CIB | H33: مستحق | I33: محصل | J33: AAIB | K33: 2021-11-23 | T33: بنك الكويت الوطني NBK
B34: 2021-11-13 | C34: 31 | D34: 180 | E34: 2021-11-16 | F34: 67577479 | G34: بنك مصر Banqe Misr | H34: مستحق | I34: محصل | J34: Misr | K34: 2021-11-17 | T34: بنك ابوظبي التجاري ADCB
B35: 2021-11-18 | C35: 32 | D35: 181 | E35: 2021-11-17 | F35: 519989223 | G35: البنك التجاري الدولي CIB | H35: مستحق | I35: محصل | J35: ADIB | K35: 2021-11-23 | T35: بنك عوده - Bank Audi
B36: 2021-11-21 | C36: 33 | D36: 182 | E36: 2021-11-17 | F36: 2767 | G36: اتش اس بي سي HSBC | H36: مستحق | I36: محصل | J36: AAIB | K36: 2021-11-23 | T36: البنك المصري لتنمية الصادرات IDB Bank
B37: 2021-11-16 | C37: 34 | D37: 183 | E37: 2021-11-18 | F37: 07734579 | G37: البنك الاهلي الكويتي ABK | H37: مستحق | I37: محصل | J37: ADIB | K37: 2021-11-23 | T37: المصرف العربي الدولي AIB Bank
B38: 2021-11-14 | C38: 35 | D38: 184 | E38: 2021-11-20 | F38: 52245631 | G38: بنك قطر الوطني QNB | H38: مستحق | I38: محصل | J38: ADIB | K38: 2021-11-24 | T38: البنك العقاري المصري العربي EALB
B39: 2021-11-22 | C39: 36 | D39: 185 | E39: 2021-11-20 | F39: 520322923 | G39: البنك التجاري الدولي CIB | H39: مستحق | I39: محصل | J39: AAIB | K39: 2021-11-23 | T39: البنك الزراعي المصري
B40: 2021-11-23 | C40: 37 | D40: 186 | E40: 2021-11-22 | F40: 211101004652 | G40: بنك الاسكندرية Alex Bank | H40: مستحق | I40: محصل | J40: AAIB | K40: 2021-11-23 | T40: بنك التنمية الصناعية IDB
B41: 2021-11-27 | C41: 38 | D41: 187 | E41: 2021-11-22 | F41: 7508484 | G41: البنك الاهلي المتحد Ahli United Bank | H41: مستحق | I41: محصل | J41: ADIB | K41: 2021-11-28 | T41: بنك بلوم مصر
B42: 2021-11-02 | C42: 39 | D42: 188 | E42: 2021-11-25 | F42: 52494319 | G42: بنك قطر الوطني QNB | H42: مستحق | I42: محصل | J42: FAB | K42: 2021-11-09
B43: 2021-11-11 | C43: 40 | D43: 189 | E43: 2021-11-25 | F43: 8953168 | G43: بنك الموسسة العربية المصرفية ABC | H43: مستحق | I43: محصل | J43: FAB | K43: 2021-11-14
B44: 2021-11-13 | C44: 41 | D44: 190 | E44: 2021-11-25 | F44: 155614 | G44: مصرف ابوظبي الاسلامي ADIB | H44: مستحق | I44: محصل | J44: FAB | K44: 2021-11-14
B45: 2021-11-21 | C45: 42 | D45: 191 | E45: 2021-11-25 | F45: 51401227 | G45: بنك قطر الوطني QNB | H45: مستحق | I45: محصل | J45: ADIB | K45: 2021-11-25
B46: 2021-11-25 | C46: 43 | D46: 192 | E46: 2021-11-25 | F46: 51516440 | G46: بنك قطر الوطني QNB | H46: مستحق | I46: محصل | J46: AAIB | K46: 2021-11-25
B47: 2021-11-13 | C47: 44 | D47: 193 | E47: 2021-11-25 | F47: 67577480 | G47: بنك مصر Banqe Misr | H47: مستحق | I47: محصل | J47: Misr | K47: 2021-11-28
B48: 2021-11-17 | C48: 45 | D48: 194 | E48: 2021-11-26 | F48: 519974470 | G48: البنك التجاري الدولي CIB | H48: مستحق | I48: محصل | J48: ADIB | K48: 2021-11-25
A49: المصنع | B49: 2021-11-25 | C49: 46 | D49: 195 | E49: 2021-11-28 | F49: 91761448 | G49: بنك عودة Bank Audi | H49: مستحق | I49: محصل | J49: ADIB | K49: 2021-11-28
A50: المصنع | B50: 2021-12-02 | C50: 47 | D50: 196 | E50: 2021-11-29 | F50: 52958173 | G50: بنك قطر الوطني QNB | H50: مستحق | I50: محصل | L50: تم الصرف نقدا
A51: المصنع | B51: 2021-11-16 | C51: 48 | D51: 197 | E51: 2021-11-30 | F51: 52095227 | G51: بنك قطر الوطني QNB | H51: مستحق | I51: محصل | J51: FAB | K51: 2021-12-02
B52: 2021-11-17 | C52: 49 | D52: 198 | E52: 2021-11-30 | F52: 67806526 | G52: بنك مصر Banqe Misr | H52: مستحق | I52: محصل | J52: FAB | K52: 2021-12-02
B53: 2021-11-30 | C53: 50 | D53: 199 | E53: 2021-11-30 | F53: 69180 | G53: مصرف ابوظبي الاسلامي ADIB | H53: مستحق | I53: محصل | J53: ADIB | K53: 2021-11-30
B54: 2021-12-01 | C54: 51 | D54: 200 | E54: 2021-11-30 | F54: 518079451 | G54: البنك التجاري الدولي CIB | H54: مستحق | I54: محصل | J54: FAB | K54: 2021-12-02
B55: 2021-12-07 | C55: 52 | D55: 201 | E55: 2021-11-30 | F55: 14797 | G55: بنك المشرق Mashreq Bank | H55: مستحق | I55: محصل | J55: ADIB | K55: 2021-12-08
B56: 2021-12-09 | C56: 53 | D56: 202 | E56: 2021-11-30 | F56: 51516640 | G56: بنك قطر الوطني QNB | H56: مستحق | I56: محصل | J56: ADIB | K56: 2021-12-12
A57: المصنع | B57: 2021-11-22 | C57: 54 | D57: 203 | E57: 2021-12-02 | F57: 67577483 | G57: بنك مصر Banqe Misr | H57: مستحق | I57: محصل | J57: Misr | K57: 2021-12-07
A58: المصنع | B58: 2021-12-06 | C58: 55 | D58: 204 | E58: 2021-12-02 | F58: 4307868 | G58: بنك البركة AlBaraka | H58: مستحق | I58: محصل | J58: ADIB | K58: 2021-12-08
B59: 2021-12-06 | C59: 56 | D59: 205 | E59: 2021-12-03 | F59: 4308411 | G59: بنك البركة AlBaraka | H59: مستحق | I59: محصل | J59: ADIB | K59: 2021-12-08
B60: 2021-11-30 | C60: 57 | D60: 206 | E60: 2021-12-05 | F60: 52003443 | G60: بنك قطر الوطني QNB | H60: مستحق | I60: محصل | J60: FAB | K60: 2021-12-02
B61: 2021-12-09 | C61: 58 | D61: 207 | E61: 2021-12-05 | F61: 68061529 | G61: بنك مصر Banqe Misr | H61: مستحق | I61: محصل | J61: Misr | K61: 2021-12-09
B62: 2021-12-09 | C62: 59 | D62: 208 | E62: 2021-12-06 | F62: 4918635 | G62: بنك البركة AlBaraka | H62: مستحق | I62: محصل | J62: ADIB | K62: 2021-12-12
B63: 2021-12-12 | C63: 60 | D63: 209 | E63: 2021-12-06 | F63: 11780000101961 | G63: البنك الاهلي المصري NBE | H63: مستحق | I63: محصل | J63: ADIB | K63: 2021-12-12
B64: 2021-12-07 | C64: 61 | D64: 210 | E64: 2021-12-08 | F64: 520366984 | G64: البنك التجاري الدولي CIB | H64: مستحق | I64: محصل | J64: ADIB | K64: 2021-12-08
B65: 2021-12-07 | C65: 62 | D65: 211 | E65: 2021-12-08 | F65: 520366985 | G65: البنك التجاري الدولي CIB | H65: مستحق | I65: محصل | J65: ADIB | K65: 2021-12-08
A66: المصنع | B66: 2021-11-30 | C66: 63 | D66: 212 | E66: 2021-12-09 | F66: 50829712 | G66: بنك قطر الوطني QNB | H66: مستحق | I66: محصل | J66: FAB | K66: 2021-12-02
A67: المصنع | B67: 2021-12-02 | C67: 64 | D67: 213 | E67: 2021-12-09 | F67: 67577485 | G67: بنك مصر Banqe Misr | H67: مستحق | I67: محصل | J67: Misr | K67: 2021-12-12
B68: 2022-01-12 | C68: 65 | D68: 214 | E68: 2021-12-09 | F68: 90267788 | G68: بنك مصر Banqe Misr | H68: =IF(E68>TODAY(),"غير مستحق ","مستحق ") -> مستحق | I68: محصل | J68: Misr | K68: 2022-01-13
B69: 2021-11-01 | C69: 66 | D69: 215 | E69: 2021-12-10 | F69: 20500027797400 | G69: كريدي اجريكول Credit Agricole | H69: مستحق | I69: محصل | J69: ADIB | K69: 2021-12-12 | L69: بالمصنع
B70: 2021-12-11 | C70: 67 | D70: 216 | E70: 2021-12-10 | F70: 52245840 | G70: بنك قطر الوطني QNB | H70: مستحق | I70: محصل | J70: ADIB | K70: 2021-12-12
B71: 2021-12-20 | C71: 68 | D71: 217 | E71: 2021-12-13 | F71: 91002549348 | G71: البنك التجاري الدولي CIB | H71: مستحق | I71: محصل | J71: ADIB | K71: 2021-12-21
B72: 2021-12-19 | C72: 69 | D72: 218 | E72: 2021-12-15 | F72: 616 | G72: البنك الاهلي الكويتي ABK | H72: مستحق | I72: محصل | J72: ADIB | K72: 2021-12-19
B73: 2021-12-19 | C73: 70 | D73: 219 | E73: 2021-12-15 | F73: 9756 | G73: البنك الاهلي الكويتي ABK | H73: مستحق | I73: محصل | J73: ADIB | K73: 2021-12-19
B74: 2021-12-21 | C74: 71 | D74: 220 | E74: 2021-12-15 | F74: 0040383159 | G74: البنك الاهلي الكويتي ABK | H74: مستحق | I74: محصل | J74: ADIB | K74: 2021-12-21
B75: 2021-12-25 | C75: 72 | D75: 221 | E75: 2021-12-15 | F75: 3061 | G75: اتش اس بي سي HSBC | H75: مستحق | I75: محصل | J75: AAIB | K75: 2021-12-26
B76: 2021-12-26 | C76: 73 | D76: 222 | E76: 2021-12-15 | F76: 51516829 | G76: بنك قطر الوطني QNB | H76: مستحق | I76: محصل | J76: AAIB | K76: 2021-12-26
A77: المصنع | B77: 2022-02-05 | C77: 74 | D77: 223 | E77: 2021-12-15 | F77: 201406634 | G77: بنك الامارات دبي الوطني Emirates NBD | H77: مستحق | I77: محصل | J77: FAB | K77: 2022-02-06
A78: المصنع | B78: 2021-11-30 | C78: 75 | D78: 224 | E78: 2021-12-16 | F78: 05886000077906 | G78: البنك الاهلي المصري NBE | H78: مستحق | I78: محصل | J78: FAB | K78: 2021-12-02
B79: 2021-12-07 | C79: 76 | D79: 225 | E79: 2021-12-16 | F79: 67577486 | G79: بنك مصر Banqe Misr | H79: مستحق | I79: محصل | J79: Misr | K79: 2021-12-19 | L79: بالمصنع
B80: 2021-12-16 | C80: 77 | D80: 226 | E80: 2021-12-16 | F80: 52958199 | G80: بنك قطر الوطني QNB | H80: مستحق | I80: محصل | L80: نقدي
B81: 2021-12-19 | C81: 78 | D81: 227 | E81: 2021-12-16 | F81: 156832 | G81: مصرف ابوظبي الاسلامي ADIB | H81: مستحق | I81: محصل | J81: ADIB | K81: 2021-12-16
B82: 2021-11-27 | C82: 79 | D82: 228 | E82: 2021-12-19 | F82: 8947 | G82: مصرف ابوظبي الاسلامي ADIB | H82: مستحق | I82: محصل | J82: FAB | K82: 2021-12-02
B83: 2021-12-16 | C83: 80 | D83: 229 | E83: 2021-12-20 | F83: 53250918 | G83: بنك قطر الوطني QNB | H83: مستحق | I83: محصل | L83: نقدي
B84: 2021-12-16 | C84: 81 | D84: 230 | E84: 2021-12-20 | F84: 91761491 | G84: بنك عودة Bank Audi | H84: مستحق | I84: محصل | J84: ADIB | K84: 2021-12-19
B85: 2021-12-06 | C85: 82 | D85: 231 | E85: 2021-12-21 | F85: 07811052 | G85: البنك الاهلي المتحد Ahli United Bank | H85: مستحق | I85: محصل | J85: FAB | K85: 2021-12-15
B86: 2021-12-20 | C86: 83 | D86: 232 | E86: 2021-12-22 | F86: 47276456 | G86: بنك قطر الوطني QNB | H86: مستحق | I86: محصل | J86: ADIB | K86: 2021-12-21
B87: 2021-12-25 | C87: 84 | D87: 233 | E87: 2021-12-22 | F87: 64276065 | G87: بنك مصر Banqe Misr | H87: مستحق | I87: محصل | J87: AAIB | K87: 2021-12-26
B88: 2021-12-07 | C88: 85 | D88: 234 | E88: 2021-12-23 | F88: 67577487 | G88: بنك مصر Banqe Misr | H88: مستحق | I88: محصل | J88: Misr | L88: بالمصنع
B89: 2021-12-23 | C89: 86 | D89: 235 | E89: 2021-12-23 | F89: 62353 | G89: اتش اس بي سي HSBC | H89: مستحق | I89: محصل | J89: AAIB | K89: 2021-12-26
B90: 2021-12-30 | C90: 87 | D90: 236 | E90: 2021-12-24 | F90: 68061555 | G90: بنك مصر Banqe Misr | H90: مستحق | I90: محصل | J90: Misr | K90: 2021-12-30
B91: 2021-12-08 | C91: 88 | D91: 237 | E91: 2021-12-25 | F91: 67806611 | G91: بنك مصر Banqe Misr | H91: مستحق | I91: محصل | J91: FAB | K91: 2021-12-15
B92: 2021-12-25 | C92: 89 | D92: 238 | E92: 2021-12-26 | F92: 211123007136 | G92: بنك الاسكندرية Alex Bank | H92: مستحق | I92: محصل | J92: AAIB | K92: 2021-12-26
B93: 2021-12-16 | C93: 90 | D93: 239 | E93: 2021-12-27 | F93: 91761492 | G93: بنك عودة Bank Audi | H93: مستحق | I93: محصل | J93: AAIB | K93: 2021-12-26
B94: 2021-12-30 | C94: 91 | D94: 240 | E94: 2021-12-29 | F94: 902033374 | G94: البنك العربي الافريقي AAIB | H94: مستحق | I94: محصل | J94: AAIB | K94: 2022-01-02
B95: 2021-12-12 | C95: 92 | D95: 241 | E95: 2021-12-30 | F95: 53216838 | G95: بنك قطر الوطني QNB | H95: مستحق | I95: محصل | J95: FAB | K95: 2021-12-15
B96: 2021-12-20 | C96: 93 | D96: 242 | E96: 2021-12-30 | F96: 519974512 | G96: البنك التجاري الدولي CIB | H96: مستحق | I96: محصل | J96: ADIB-Inv. | K96: 2021-12-30
B97: 2021-12-21 | C97: 94 | D97: 243 | E97: 2021-12-30 | F97: 5321 | G97: بنك قطر الوطني QNB | H97: مستحق | I97: محصل | J97: ADIB-Inv. | K97: 2021-12-30
B98: 2021-12-25 | C98: 95 | D98: 244 | E98: 2021-12-30 | F98: 51401526 | G98: بنك قطر الوطني QNB | H98: مستحق | I98: محصل | J98: ADIB-Inv. | K98: 2021-12-30
B99: 2021-12-19 | C99: 96 | D99: 245 | E99: 2021-12-31 | F99: 69460 | G99: مصرف ابوظبي الاسلامي ADIB | H99: مستحق | I99: محصل | J99: ADIB-Inv. | K99: 2022-01-02
B100: 2022-01-08 | C100: 97 | D100: 246 | E100: 2021-12-31 | F100: 51517052 | G100: بنك قطر الوطني QNB | H100: مستحق | I100: محصل | J100: ADIB-Inv. | K100: 2022-01-05
B101: 2022-01-19 | C101: 98 | D101: 247 | E101: 2021-12-31 | F101: 00015395 | G101: بنك المشرق Mashreq Bank | H101: مستحق | I101: محصل | J101: AAIB | K101: 2022-01-24
B102: 2021-12-09 | C102: 99 | D102: 248 | E102: 2022-01-02 | F102: 34463 | G102: وفا بنك Attijariwafa Bank | H102: مستحق | I102: محصل | J102: FAB | K102: 2021-12-15
B103: 2022-01-09 | C103: 100 | D103: 249 | E103: 2022-01-03 | F103: 92020009241519 | G103: بنك فيصل الاسلامي Faisal Islamic | H103: مستحق | I103: محصل | J103: ADIB-Inv. | K103: 2022-01-05
B104: 2022-01-17 | C104: 101 | D104: 250 | E104: 2022-01-03 | F104: 4308515 | G104: بنك البركة AlBaraka | H104: مستحق | I104: محصل | J104: ADIB-Inv. | K104: 2022-01-19
B105: 2022-01-13 | C105: 102 | D105: 251 | E105: 2022-01-04 | F105: 8017000033316 | G105: البنك الاهلي المصري NBE | H105: مستحق | I105: محصل | J105: ADIB-Inv. | K105: 2022-01-16
B106: 2021-12-20 | C106: 103 | D106: 252 | E106: 2022-01-05 | F106: 5886000077982 | G106: البنك الاهلي المصري NBE | H106: مستحق | I106: محصل | J106: ADIB-Inv. | K106: 2022-01-05
B107: 2021-12-25 | C107: 104 | D107: 253 | E107: 2022-01-05 | F107: 9232 | G107: مصرف ابوظبي الاسلامي ADIB | H107: مستحق | I107: محصل | J107: ADIB-Inv. | K107: 2022-01-05
B108: 2021-12-25 | C108: 105 | D108: 254 | E108: 2022-01-06 | F108: 520366965 | G108: البنك التجاري الدولي CIB | H108: مستحق | I108: محصل | J108: ADIB-Inv. | K108: 2022-01-05
B109: 2022-02-13 | C109: 106 | D109: 255 | E109: 2022-01-06 | F109: 90267992 | G109: بنك مصر Banqe Misr | H109: مستحق | I109: محصل | J109: Misr | K109: 2022-02-20
B110: 2022-01-15 | C110: 107 | D110: 256 | E110: 2022-01-09 | F110: 522175532 | G110: البنك التجاري الدولي CIB | H110: مستحق | I110: محصل | J110: ADIB-Inv. | K110: 2022-01-16
A111: المصنع | B111: 2021-12-29 | C111: 108 | D111: 257 | E111: 2022-01-10 | F111: 50829732 | G111: بنك قطر الوطني QNB | H111: مستحق | I111: محصل | J111: ADIB-Inv. | K111: 2022-01-05
B112: 2022-01-10 | C112: 109 | D112: 258 | E112: 2022-01-12 | F112: 11780000102016 | G112: البنك الاهلي المصري NBE | H112: مستحق | I112: محصل | J112: ADIB-Inv. | K112: 2022-01-16
B113: 2022-01-16 | C113: 110 | D113: 259 | E113: 2022-01-12 | F113: 157651 | G113: مصرف ابوظبي الاسلامي ADIB | H113: مستحق | I113: محصل | J113: ADIB-Inv. | K113: 2022-01-18
B114: 2022-01-13 | C114: 111 | D114: 260 | E114: 2022-01-13 | F114: 91766269 | G114: بنك عودة Bank Audi | H114: مستحق | I114: محصل | J114: ADIB-Inv. | K114: 2022-01-16
B115: 2022-01-16 | C115: 112 | D115: 261 | E115: 2022-01-15 | F115: 10291 | G115: البنك الاهلي الكويتي ABK | H115: مستحق | I115: محصل | J115: ADIB-Inv. | K115: 2022-01-18
B116: 2022-01-16 | C116: 113 | D116: 262 | E116: 2022-01-15 | F116: 9916 | G116: البنك الاهلي الكويتي ABK | H116: مستحق | I116: محصل | J116: ADIB-Inv. | K116: 2022-01-18
B117: 2022-01-15 | C117: 114 | D117: 263 | E117: 2022-01-15 | F117: 158570 | G117: مصرف ابوظبي الاسلامي ADIB | H117: مستحق | I117: محصل | J117: AAIB | K117: 2022-02-15
B118: 2022-01-23 | C118: 115 | D118: 264 | E118: 2022-01-15 | F118: 53221870 | G118: بنك قطر الوطني QNB | H118: مستحق | I118: محصل | J118: AAIB | K118: 2022-01-26
B119: 2022-02-13 | C119: 116 | D119: 265 | E119: 2022-01-15 | F119: 158570 | G119: مصرف ابوظبي الاسلامي ADIB | H119: مستحق | I119: محصل | J119: ADIB | K119: 2022-02-20
B120: 2022-02-19 | C120: 117 | D120: 266 | E120: 2022-01-15 | F120: 20068500614956 | G120: البنك الاهلي المصري NBE | H120: مستحق | I120: محصل | J120: FAB | K120: 2022-02-20
B121: 2022-01-18 | C121: 118 | D121: 267 | E121: 2022-01-16 | F121: 52958263 | G121: بنك قطر الوطني QNB | H121: مستحق | I121: محصل | J121: ADIB-Inv. | K121: 2022-01-19 | L121: محصل نقدي ضمن ايداع 108000ج
B122: 2022-01-17 | C122: 119 | D122: 268 | E122: 2022-01-17 | F122: 53401746 | G122: بنك قطر الوطني QNB | H122: مستحق | I122: محصل | J122: ADIB-Inv. | K122: 2022-01-19
B123: 2022-01-20 | C123: 120 | D123: 269 | E123: 2022-01-18 | F123: 07810879 | G123: البنك الاهلي المتحد Ahli United Bank | H123: مستحق | I123: محصل | J123: AAIB | K123: 2022-01-24
B124: 2022-01-20 | C124: 121 | D124: 270 | E124: 2022-01-18 | F124: 003439 | G124: اتش اس بي سي HSBC | H124: مستحق | I124: محصل | J124: AAIB | K124: 2022-01-23
B125: 2022-01-24 | C125: 122 | D125: 271 | E125: 2022-01-19 | F125: 091002549654 | G125: البنك التجاري الدولي CIB | H125: مستحق | I125: محصل | J125: AAIB | K125: 2022-01-26
B126: 2022-01-25 | C126: 123 | D126: 272 | E126: 2022-01-19 | F126: 07840163 | G126: البنك الاهلي المتحد Ahli United Bank | H126: مستحق | I126: محصل | J126: FAB | K126: 2022-01-30
B127: 2022-01-10 | C127: 124 | D127: 273 | E127: 2022-01-20 | F127: 53308062 | G127: بنك قطر الوطني QNB | H127: مستحق | I127: محصل | J127: AAIB | K127: 2022-01-23
B128: 2022-01-13 | C128: 125 | D128: 274 | E128: 2022-01-24 | F128: 91766270 | G128: بنك عودة Bank Audi | H128: مستحق | I128: محصل | J128: AAIB | K128: 2022-01-23
B129: 2022-01-11 | C129: 126 | D129: 275 | E129: 2022-01-25 | F129: 53250925 | G129: بنك قطر الوطني QNB | H129: مستحق | I129: محصل | J129: AAIB | K129: 2022-01-24
B130: 2022-01-25 | C130: 127 | D130: 276 | E130: 2022-01-25 | F130: 000521983159 | G130: البنك التجاري الدولي CIB | H130: مستحق | I130: محصل | J130: AAIB | K130: 2022-01-26
B131: 2022-01-26 | C131: 128 | D131: 277 | E131: 2022-01-25 | F131: 52856315 | G131: بنك قطر الوطني QNB | H131: مستحق | I131: محصل | J131: AAIB | K131: 2022-01-26
B132: 2022-01-13 | C132: 129 | D132: 278 | E132: 2022-01-26 | F132: 211123007149 | G132: بنك الاسكندرية Alex Bank | H132: =IF(E132>TODAY(),"غير مستحق ","مستحق ") -> مستحق | I132: محصل | J132: AAIB | K132: 2022-01-26
B133: 2022-01-26 | C133: 130 | D133: 279 | E133: 2022-01-26 | F133: 51517279 | G133: بنك قطر الوطني QNB | H133: مستحق | I133: محصل | J133: AAIB | K133: 2022-01-26
B134: 2022-01-29 | C134: 131 | D134: 280 | E134: 2022-01-26 | F134: 52958285 | G134: بنك قطر الوطني QNB | H134: مستحق | I134: محصل | J134: FAB | K134: 2022-01-30 | N134: =280*80 -> 22400
B135: 2022-02-01 | C135: 132 | D135: 281 | E135: 2022-01-27 | F135: 68068000 | G135: بنك مصر Banqe Misr | H135: مستحق | I135: محصل | J135: Misr | K135: 2022-02-01
B136: 2022-01-05 | C136: 133 | D136: 282 | E136: 2022-01-28 | F136: 500042691122 | G136: كريدي اجريكول Credit Agricole | H136: مستحق | I136: محصل | J136: FAB | K136: 2022-01-08
B137: 2022-01-17 | C137: 134 | D137: 283 | E137: 2022-01-30 | F137: 52957032 | G137: بنك قطر الوطني QNB | H137: مستحق | I137: محصل | J137: FAB | K137: 2022-01-26
B138: 2022-01-24 | C138: 135 | D138: 284 | E138: 2022-01-31 | F138: 68669402 | G138: بنك مصر Banqe Misr | H138: مستحق | I138: محصل | J138: FAB | K138: 2022-01-26
B139: 2022-02-10 | C139: 136 | D139: 285 | E139: 2022-01-31 | F139: 69872 | G139: مصرف ابوظبي الاسلامي ADIB | H139: مستحق | I139: محصل | J139: FAB | K139: 2022-02-13
B140: 2022-07-27 | C140: 137 | D140: 286 | E140: 2022-01-31 | F140: 00015919 | G140: بنك المشرق Mashreq Bank | H140: مستحق | I140: محصل | J140: AAIB | K140: 2022-07-28
B141: 2022-07-28 | C141: 138 | D141: 287 | E141: 2022-01-31 | F141: 0000005841 | G141: بنك المشرق Mashreq Bank | H141: مستحق | I141: محصل | J141: AAIB | K141: 2022-07-31
B142: 2022-12-27 | C142: 139 | D142: 288 | E142: 2022-02-01 | F142: 521983178 | G142: البنك التجاري الدولي CIB | H142: مستحق | I142: محصل | J142: FAB | K142: 2022-02-06
B143: 2021-12-27 | C143: 140 | D143: 289 | E143: 2022-02-01 | F143: 521983179 | G143: البنك التجاري الدولي CIB | H143: مستحق | I143: محصل | J143: FAB | K143: 2022-02-06
B144: 2022-02-03 | C144: 141 | D144: 290 | E144: 2022-02-02 | F144: 817000005 | G144: البنك الاهلي المصري NBE | H144: مستحق | I144: محصل | J144: FAB | K144: 2022-02-03
B145: 2021-12-29 | C145: 142 | D145: 291 | E145: 2022-02-05 | F145: 53216859 | G145: بنك قطر الوطني QNB | H145: مستحق | I145: محصل | J145: FAB | K145: 2022-01-26
B146: 2022-01-30 | C146: 143 | D146: 292 | E146: 2022-02-05 | F146: 68669430 | G146: بنك مصر Banqe Misr | H146: مستحق | I146: محصل | J146: FAB | K146: 2022-01-31
B147: 2022-02-01 | C147: 144 | D147: 293 | E147: 2022-02-05 | F147: 53308198 | G147: بنك قطر الوطني QNB | H147: مستحق | I147: محصل | J147: FAB | K147: 2022-02-03
B148: 2022-02-12 | C148: 145 | D148: 294 | E148: 2022-02-05 | F148: 53222038 | G148: بنك قطر الوطني QNB | H148: مستحق | I148: محصل | J148: FAB | K148: 2022-02-13
B149: 2022-12-18 | C149: 146 | D149: 295 | E149: 2022-02-06 | F149: 20500027797465 | G149: كريدي اجريكول Credit Agricole | H149: مستحق | I149: محصل | J149: FAB | K149: 2022-01-26
B150: 2022-12-18 | C150: 147 | D150: 296 | E150: 2022-02-06 | F150: 20500027797464 | G150: كريدي اجريكول Credit Agricole | H150: مستحق | I150: محصل | J150: FAB | K150: 2022-01-26
B151: 2022-01-24 | C151: 148 | D151: 297 | E151: 2022-02-08 | F151: 27680062 | G151: الشركة المصرفية العربية الدولية SAIB | H151: مستحق | I151: محصل | J151: FAB | K151: 2022-01-26
B152: 2022-02-27 | C152: 149 | D152: 298 | E152: 2022-02-08 | F152: 000522175679 | G152: البنك التجاري الدولي CIB | H152: مستحق | I152: محصل | J152: FAB | K152: 2022-03-06
B153: 2022-02-12 | C153: 150 | D153: 299 | E153: 2022-02-10 | F153: 11780000102159 | G153: البنك الاهلي المصري NBE | H153: مستحق | I153: محصل | J153: FAB | K153: 2022-02-13
B154: 2022-02-15 | C154: 151 | D154: 300 | E154: 2022-02-10 | F154: 07840339 | G154: البنك الاهلي المتحد Ahli United Bank | H154: مستحق | I154: محصل | J154: AAIB | K154: 2022-02-15
B155: 2022-01-29 | C155: 152 | D155: 301 | E155: 2022-02-14 | F155: 9506 | G155: مصرف ابوظبي الاسلامي ADIB | H155: مستحق | I155: محصل | J155: FAB | K155: 2022-02-03
B156: 2022-03-05 | C156: 153 | D156: 302 | E156: 2022-02-14 | F156: 20068500614995 | G156: البنك الاهلي المصري NBE | H156: مستحق | I156: محصل | J156: FAB | K156: 2022-03-06
B157: 2022-02-21 | C157: 154 | D157: 303 | E157: 2022-02-15 | F157: 000521983206 | G157: البنك التجاري الدولي CIB | H157: مستحق | I157: محصل | L157: باسم .شاهر شريف تحصيل بالخزينه
B158: 2022-02-21 | C158: 155 | D158: 304 | E158: 2022-02-15 | F158: 000521983205 | G158: البنك التجاري الدولي CIB | H158: مستحق | I158: محصل | J158: FAB | K158: 2022-02-23
B159: 2022-02-24 | C159: 156 | D159: 305 | E159: 2022-02-15 | F159: 0000010544 | G159: البنك الاهلي الكويتي ABK | H159: مستحق | I159: محصل | J159: AAIB | K159: 2022-02-27
B160: 2022-02-06 | C160: 157 | D160: 306 | E160: 2022-02-17 | F160: 44112686 | G160: بنك قطر الوطني QNB | H160: مستحق | I160: محصل | J160: FAB | K160: 2022-02-06
B161: 2021-12-29 | C161: 158 | D161: 307 | E161: 2022-02-20 | F161: 53216860 | G161: بنك قطر الوطني QNB | H161: مستحق | I161: محصل | J161: FAB | K161: 2022-01-26
B162: 2022-02-07 | C162: 159 | D162: 308 | E162: 2022-02-20 | F162: 07898454 | G162: البنك الاهلي المتحد Ahli United Bank | H162: مستحق | I162: محصل | J162: FAB | K162: 2022-02-09
B163: 2022-02-16 | C163: 160 | D163: 309 | E163: 2022-02-20 | F163: 53251017 | G163: بنك قطر الوطني QNB | H163: مستحق | I163: محصل | J163: FAB | K163: 2022-02-17
B164: 2022-02-24 | C164: 161 | D164: 310 | E164: 2022-02-21 | F164: 0000010029 | G164: البنك الاهلي الكويتي ABK | H164: مستحق | I164: محصل | J164: AAIB | K164: 2022-02-27
B165: 2022-02-28 | C165: 162 | D165: 311 | E165: 2022-02-21 | F165: 091002549933 | G165: البنك التجاري الدولي CIB | H165: مستحق | I165: محصل | J165: FAB | K165: 2022-03-06
B166: 2022-02-16 | C166: 163 | D166: 312 | E166: 2022-02-22 | F166: 000519974629 | G166: البنك التجاري الدولي CIB | H166: مستحق | I166: محصل | J166: FAB | K166: 2022-02-17
B167: 2022-02-20 | C167: 164 | D167: 313 | E167: 2022-02-22 | F167: 68061581 | G167: بنك مصر Banqe Misr | H167: مستحق | I167: محصل | J167: Misr | K167: 2022-02-22
B168: 2022-02-28 | C168: 165 | D168: 314 | E168: 2022-02-22 | F168: 52958353 | G168: بنك قطر الوطني QNB | H168: مستحق | I168: محصل
B169: 2022-02-21 | C169: 166 | D169: 315 | E169: 2022-02-23 | F169: 53401776 | G169: بنك قطر الوطني QNB | H169: مستحق | I169: محصل | J169: FAB | K169: 2022-02-23
B170: 2022-02-09 | C170: 167 | D170: 316 | E170: 2022-02-24 | F170: 211123007206 | G170: بنك الاسكندرية Alex Bank | H170: مستحق | I170: محصل | J170: FAB | K170: 2022-02-13
B171: 2022-02-24 | C171: 168 | D171: 317 | E171: 2022-02-24 | F171: 63509 | G171: اتش اس بي سي HSBC | H171: مستحق | I171: محصل | J171: AAIB | K171: 2022-02-27
B172: 2022-01-11 | C172: 169 | D172: 318 | E172: 2022-02-25 | F172: 53250926 | G172: بنك قطر الوطني QNB | H172: مستحق | I172: محصل | J172: FAB | K172: 2022-01-26
B173: 2022-02-20 | C173: 170 | D173: 319 | E173: 2022-02-25 | F173: 53222185 | G173: بنك قطر الوطني QNB | H173: مستحق | I173: محصل | J173: FAB | K173: 2022-02-23
B174: 2022-03-02 | C174: 171 | D174: 320 | E174: 2022-02-25 | F174: 5338480 | G174: بنك قطر الوطني QNB | H174: مستحق | I174: محصل | J174: FAB | K174: 2022-03-06
B175: 2022-02-16 | C175: 172 | D175: 321 | E175: 2022-02-26 | F175: 91766408 | G175: بنك عوده - Bank Audi | H175: مستحق | I175: محصل | J175: FAB | K175: 2022-02-17
B176: 2022-02-17 | C176: 173 | D176: 322 | E176: 2022-02-28 | F176: 53414073 | G176: بنك قطر الوطني QNB | H176: مستحق | I176: محصل | J176: FAB | K176: 2022-02-20
B177: 2022-03-01 | C177: 174 | D177: 323 | E177: 2022-02-28 | F177: 000522169714 | G177: البنك التجاري الدولي CIB | H177: مستحق | I177: محصل | J177: FAB | K177: 2022-03-06
B178: 2022-07-27 | C178: 175 | D178: 324 | E178: 2022-02-28 | F178: 00016395 | G178: بنك المشرق Mashreq Bank | H178: مستحق | I178: محصل | J178: AAIB | K178: 2022-07-28
B179: 2022-07-28 | C179: 176 | D179: 325 | E179: 2022-02-28 | F179: 00007920 | G179: بنك المشرق Mashreq Bank | H179: مستحق | I179: محصل | J179: AAIB | K179: 2022-07-31
B180: 2022-07-28 | C180: 177 | D180: 326 | E180: 2022-02-28 | F180: 0000006325 | G180: بنك المشرق Mashreq Bank | H180: مستحق | I180: محصل | J180: AAIB | K180: 2022-07-31
B181: 2022-02-20 | C181: 178 | D181: 327 | E181: 2022-03-02 | F181: 9686 | G181: مصرف ابوظبي الاسلامي ADIB | H181: مستحق | I181: محصل | J181: FAB | K181: 2022-02-23
B182: 2022-03-02 | C182: 179 | D182: 328 | E182: 2022-03-02 | F182: 3481700005534 | G182: البنك الاهلي المصري NBE | H182: مستحق | I182: محصل | J182: FAB | K182: 2022-03-06
B183: 2022-03-05 | C183: 180 | D183: 329 | E183: 2022-03-02 | F183: 54450918 | G183: بنك قطر الوطني QNB | H183: مستحق | I183: محصل | J183: تحصيل نقدي
B184: 2022-03-12 | C184: 181 | D184: 330 | E184: 2022-03-02 | F184: 51517868 | G184: بنك قطر الوطني QNB | H184: مستحق | I184: محصل | J184: AAIB | K184: 2022-03-13
B185: 2022-03-07 | C185: 182 | D185: 331 | E185: 2022-03-03 | F185: 53755729 | G185: بنك قطر الوطني QNB | H185: مستحق | I185: محصل | J185: AAIB | K185: 2022-03-10
B186: 2022-04-06 | C186: 183 | D186: 332 | E186: 2022-03-03 | F186: 34817000005719 | G186: البنك الاهلي المصري NBE | H186: مستحق | I186: محصل | J186: AAIB | K186: 2022-04-07
B187: 2022-02-16 | C187: 184 | D187: 333 | E187: 2022-03-05 | F187: 53216905 | G187: بنك قطر الوطني QNB | H187: مستحق | I187: محصل | J187: FAB | K187: 2022-02-17
B188: 2022-02-28 | C188: 185 | D188: 334 | E188: 2022-03-06 | F188: 05886000077863 | G188: البنك الاهلي المصري NBE | H188: مستحق | I188: محصل | J188: FAB | K188: 2022-03-06
B189: 2022-03-10 | C189: 186 | D189: 335 | E189: 2022-03-07 | F189: 000521983240 | G189: البنك التجاري الدولي CIB | H189: مستحق | I189: محصل | J189: AAIB | K189: 2022-03-10
B190: 2022-03-23 | C190: 187 | D190: 336 | E190: 2022-03-08 | F190: 11780000102220 | G190: البنك الاهلي المصري NBE | H190: مستحق | I190: محصل | J190: AAIB | K190: 2022-03-24
B191: 2022-03-07 | C191: 188 | D191: 337 | E191: 2022-03-09 | F191: 133171753 | G191: بنك عوده - Bank Audi | H191: مستحق | I191: محصل | J191: AAIB | K191: 2022-03-10
B192: 2022-02-27 | C192: 189 | D192: 338 | E192: 2022-03-10 | F192: 53916523 | G192: بنك قطر الوطني QNB | H192: مستحق | I192: محصل | J192: FAB | K192: 2022-02-27
B193: 2022-04-12 | C193: 190 | D193: 339 | E193: 2022-03-10 | F193: 90268547 | G193: بنك مصر Banqe Misr | H193: مستحق | I193: محصل | J193: Misr | K193: 2022-04-13
B194: 2022-02-24 | C194: 191 | D194: 340 | E194: 2022-03-15 | F194: 0000010543 | G194: البنك الاهلي الكويتي ABK | H194: مستحق | I194: محصل | J194: FAB | K194: 2022-02-27
B195: 2022-03-19 | C195: 192 | D195: 341 | E195: 2022-03-17 | F195: 69652607 | G195: بنك مصر Banqe Misr | H195: مستحق | I195: محصل | J195: Misr | K195: 2022-03-23
B196: 2022-03-24 | C196: 193 | D196: 342 | E196: 2022-03-17 | F196: 51518089 | G196: بنك قطر الوطني QNB | H196: =IF(E196>TODAY(),"غير مستحق ","مستحق ") -> مستحق | I196: محصل | J196: AAIB | K196: 2022-03-27
B197: 2022-02-20 | C197: 194 | D197: 343 | E197: 2022-03-18 | F197: 68061582 | G197: بنك مصر Banqe Misr | H197: مستحق | I197: محصل | J197: FAB | K197: 2022-02-23
B198: 2022-03-10 | C198: 195 | D198: 344 | E198: 2022-03-21 | F198: 07973058 | G198: البنك الاهلي المتحد Ahli United Bank | H198: مستحق | I198: محصل | J198: AAIB
B199: 2022-06-19 | C199: 196 | D199: 345 | E199: 2022-03-21 | F199: 000001125 | G199: مصرف ابوظبي الاسلامي ADIB | H199: مستحق | I199: محصل | J199: ADIB | K199: 2022-06-26
B200: 2022-03-17 | C200: 197 | D200: 346 | E200: 2022-03-22 | F200: 91766312 | G200: بنك عوده - Bank Audi | H200: =IF(E200>TODAY(),"غير مستحق ","مستحق ") -> مستحق | I200: محصل | J200: AAIB
... 324 more rows

Sheet AAIB
E1: `
C4: =B906-507164.47 -> 0.05059999763
B5: =B7+C5-D5 -> -735771.8694 | C5: =SUM(C8:C1564) -> 19215043.31 | D5: =SUM(D8:D1564) -> 20192180.12
B6: رصيد | C6: إيداعات | D6: مسحوبات | E6: بيـــــــــــان | F6: رقم المستند | G6: تاريخ
B7: 241364.9406
B8: =B7+C8-D8 -> 171245.2406 | D8: 70119.7 | G8: 2022-01-02
B9: =B8+C9-D9 -> 171830.2406 | C9: 585 | G9: 2022-01-02
B10: 171818.5406 | D10: 11.7 | G10: 2022-01-02
B11: 172514.0406 | C11: 695.5 | G11: 2022-01-02
B12: 172500.1306 | D12: 13.91 | G12: 2022-01-02
B13: 202500.1306 | C13: 30000 | G13: 2022-01-02
B14: 242500.1306 | C14: 40000 | G14: 2022-01-02
B15: 242825.1306 | C15: 325 | G15: 2022-01-03
B16: 242818.6306 | D16: 6.5 | G16: 2022-01-03
B17: 265237.6306 | C17: 22419 | G17: 2022-01-03
B18: 265230.6306 | D18: 7 | G18: 2022-01-03
B19: 269525.9806 | C19: 4295.35 | G19: 2022-01-04
B20: 270220.9806 | C20: 695 | G20: 2022-01-04
B21: 270210.4506 | D21: 10.53 | G21: 2022-01-04
B22: 330210.4506 | C22: 60000 | G22: 2022-01-04
B23: 355210.4506 | C23: 25000 | G23: 2022-01-04
B24: 196710.4506 | D24: 158500 | G24: 2022-01-04
B25: 163144.0506 | D25: 33566.4 | G25: 2022-01-04
B26: 164340.0506 | C26: 1196 | G26: 2022-01-05
B27: 164316.1306 | D27: 23.92 | G27: 2022-01-05
B28: 163182.7606 | D28: 1133.37 | G28: 2022-01-05
B29: 43182.7606 | D29: 120000 | G29: 2022-01-05
B30: 93182.7606 | C30: 50000 | G30: 2022-01-09
B31: 93876.2606 | C31: 693.5 | G31: 2022-01-09
B32: 93862.3906 | D32: 13.87 | G32: 2022-01-09
B33: 94420.3906 | C33: 558 | G33: 2022-01-11
B34: 94409.2306 | D34: 11.16 | G34: 2022-01-11
B35: 80182.0306 | D35: 14227.2 | G35: 2022-01-11
B36: 130182.0306 | C36: 50000 | G36: 2022-01-11
B37: 193182.0306 | C37: 63000 | G37: 2022-01-11
B38: 218182.0306 | C38: 25000 | G38: 2022-01-11
B39: 243182.0306 | C39: 25000 | G39: 2022-01-12
B40: 243491.5306 | C40: 309.5 | G40: 2022-01-13
B41: 243485.3406 | D41: 6.19 | G41: 2022-01-13
B42: 268485.3406 | C42: 25000 | G42: 2022-01-13
B43: 269921.3406 | C43: 1436 | G43: 2022-01-16
B44: 269892.6206 | D44: 28.72 | G44: 2022-01-16
B45: 270532.6206 | C45: 640 | G45: 2022-01-16
B46: 270519.8206 | D46: 12.8 | G46: 2022-01-16
B47: 270811.3206 | C47: 291.5 | G47: 2022-01-17
B48: 270805.4906 | D48: 5.83 | G48: 2022-01-17
B49: 320805.4906 | C49: 50000 | G49: 2022-01-17
B50: 325816.3706 | C50: 5010.88 | G50: 2022-01-18
B51: 326238.3706 | C51: 422 | G51: 2022-01-18
B52: 326229.9306 | D52: 8.44 | G52: 2022-01-18
B53: 351229.9306 | C53: 25000 | G53: 2022-01-18
B54: 321229.9306 | D54: 30000 | G54: 2022-01-19
B55: 228429.9306 | D55: 92800 | G55: 2022-01-20
B56: 253429.9306 | C56: 25000 | G56: 2022-01-20
B57: 303429.9306 | C57: 50000 | G57: 2022-01-23
B58: 304049.9306 | C58: 620 | G58: 2022-01-23
B59: 304038.3206 | D59: 11.61 | G59: 2022-01-23
B60: 338038.3206 | C60: 34000 | G60: 2022-01-23
B61: 311038.3206 | D61: 27000 | G61: 2022-01-23
B62: 267831.3206 | D62: 43207 | G62: 2022-01-23
B63: 280581.3206 | C63: 12750 | G63: 2022-01-23
B64: 300581.3206 | C64: 20000 | G64: 2022-01-25
B65: 304684.4106 | C65: 4103.09 | G65: 2022-01-25
B66: 339684.4106 | C66: 35000 | G66: 2022-01-25
B67: 89684.4106 | D67: 250000 | G67: 2022-01-25
B68: 77254.4106 | D68: 12430 | G68: 2022-01-25
B69: 175254.4106 | C69: 98000 | G69: 2022-01-25
B70: 175435.4106 | C70: 181 | G70: 2022-01-25
B71: 175431.7906 | D71: 3.62 | G71: 2022-01-25
B72: 206074.7906 | C72: 30643 | G72: 2022-01-26
B73: =B72+C73-D73 -> 216024.8806 | C73: 9950.09 | G73: 2022-01-26
B74: 222075.6106 | C74: 6050.73 | G74: 2022-01-26
B75: 222054.6106 | D75: 21 | G75: 2022-01-26
B76: 187054.6106 | D76: 35000 | G76: 2022-01-26
B77: 191161.1106 | C77: 4106.5 | G77: 2022-01-30
B78: 193506.4006 | C78: 2345.29 | G78: 2022-01-30
B79: 257848.5406 | C79: 64342.14 | G79: 2022-01-30
B80: 257827.5406 | D80: 21 | G80: 2022-01-30
B81: 257433.5406 | D81: 394 | G81: 2022-01-30
B82: 217433.5406 | D82: 40000 | G82: 2022-01-30
B83: 282433.5406 | C83: 65000 | G83: 2022-01-30
B84: 282844.5406 | C84: 411 | G84: 2022-01-30
B85: 282836.3206 | D85: 8.22 | G85: 2022-01-30
B86: 283399.8206 | C86: 563.5 | G86: 2022-01-30
B87: 283388.5506 | D87: 11.27 | G87: 2022-01-30
B88: 283548.0506 | C88: 159.5 | G88: 2022-01-30
B89: 283544.8606 | D89: 3.19 | G89: 2022-01-30
B90: 783544.8606 | C90: 500000 | G90: 2022-01-30
B91: 783539.0606 | D91: 5.8 | G91: 2022-01-31
B92: 784389.5606 | C92: 850.5 | G92: 2022-01-31
B93: 784372.5506 | D93: 17.01 | G93: 2022-01-31
B94: 784322.5506 | D94: 50 | G94: 2022-01-31
B95: 784222.5506 | D95: 100 | G95: 2022-01-31
B96: 784207.5506 | D96: 15 | G96: 2022-01-31
B97: 784192.5506 | D97: 15 | G97: 2022-01-31
B98: 784574.2606 | C98: 381.71 | G98: 2022-01-31
B99: 787837.6606 | C99: 3263.4 | G99: 2022-02-01
B100: 884808.0606 | C100: 96970.4 | G100: 2022-02-01
B101: 889482.4506 | C101: 4674.39 | G101: 2022-02-01
B102: 914482.4506 | C102: 25000 | G102: 2022-02-01
B103: 999147.4506 | C103: 84665 | G103: 2022-02-01
B104: 1000346.451 | C104: 1199 | G104: 2022-02-01
B105: 1004012.451 | C105: 3666 | G105: 2022-02-01
B106: 1003970.451 | D106: 42 | G106: 2022-02-01
B107: 993970.4506 | D107: 10000 | G107: 2022-02-01
B108: 1014039.451 | C108: 20069 | G108: 2022-02-01
B109: 1049039.451 | C109: 35000 | G109: 2022-02-02
B110: 1579039.451 | C110: 530000 | G110: 2022-02-02
B111: 1564812.251 | D111: 14227.2 | G111: 2022-02-02
B112: 1503984.751 | D112: 60827.5 | G112: 2022-02-02
B113: 454991.1106 | D113: 1048993.64 | G113: 2022-02-02
B114: 91431.4906 | D114: 363559.62 | G114: 2022-02-02
B115: 91231.4906 | D115: 200 | G115: 2022-02-02
B116: 90995.0906 | D116: 236.4 | G116: 2022-02-02
B117: 90601.0906 | D117: 394 | G117: 2022-02-02
B118: 82209.1406 | D118: 8391.95 | G118: 2022-02-02
B119: 80559.1406 | D119: 1650 | G119: 2022-02-02
B120: 130559.1406 | C120: 50000 | G120: 2022-02-03
B121: 138059.1406 | C121: 7500 | G121: 2022-02-03
B122: 138041.7406 | D122: 17.4 | G122: 2022-02-06
B123: 123506.7406 | D123: 14535 | G123: 2022-02-06
B124: 123506.7306 | D124: 0.01 | G124: 2022-02-06
B125: 223506.7306 | C125: 100000 | G125: 2022-02-07
B126: 823506.7306 | C126: 600000 | G126: 2022-02-07
B127: 863506.7306 | C127: 40000 | G127: 2022-02-08
B128: 821906.7306 | D128: 41600 | G128: 2022-02-08
B129: 221906.7306 | D129: 600000 | G129: 2022-02-08
B130: 222331.7306 | C130: 425 | G130: 2022-02-09
B131: 222323.2306 | D131: 8.5 | G131: 2022-02-09
B132: 222498.7306 | C132: 175.5 | G132: 2022-02-10
B133: 222495.2206 | D133: 3.51 | G133: 2022-02-10
B134: 190714.0806 | D134: 31781.14 | G134: 2022-02-10
B135: 207504.0806 | C135: 16790 | G135: 2022-02-13
B136: 208081.0806 | C136: 577 | G136: 2022-02-13
B137: =B136+C137-D137 -> 208069.5406 | D137: 11.54 | G137: 2022-02-13
B138: 208673.5406 | C138: 604 | G138: 2022-02-13
B139: 208661.4606 | D139: 12.08 | G139: 2022-02-13
B140: 208778.9606 | C140: 117.5 | G140: 2022-02-13
B141: 208776.6106 | D141: 2.35 | G141: 2022-02-13
B142: 108776.6106 | D142: 100000 | G142: 2022-02-13
B143: 112354.3306 | C143: 3577.72 | G143: 2022-02-14
B144: 64259.6306 | D144: 48094.7 | G144: 2022-02-14
B145: 35805.2306 | D145: 28454.4 | G145: 2022-02-14
B146: 75305.2306 | C146: 39500 | G146: 2022-02-14
B147: 50305.2306 | D147: 25000 | G147: 2022-02-14
B148: 110305.2306 | C148: 60000 | G148: 2022-02-14
B149: 111517.7306 | C149: 1212.5 | G149: 2022-02-15
B150: 111493.4806 | D150: 24.25 | G150: 2022-02-15
B151: 126493.4806 | C151: 15000 | G151: 2022-02-15
B152: 26493.4806 | D152: 100000 | G152: 2022-02-15
B153: 41493.4806 | C153: 15000 | G153: 2022-02-15
B154: 41737.4806 | C154: 244 | G154: 2022-02-16
B155: 41732.6006 | D155: 4.88 | G155: 2022-02-16
B156: 41913.6006 | C156: 181 | G156: 2022-02-17
B157: 41909.9806 | D157: 3.62 | G157: 2022-02-17
B158: 49409.9806 | C158: 7500 | G158: 2022-02-17
B159: 79409.9806 | C159: 30000 | G159: 2022-02-17
B160: 67205.9806 | D160: 12204 | G160: 2022-02-17
B161: 68423.6306 | C161: 1217.65 | G161: 2022-02-20
B162: 76835.6606 | C162: 8412.03 | G162: 2022-02-20
B163: 76821.6606 | D163: 14 | G163: 2022-02-20
B164: 77009.6606 | C164: 188 | G164: 2022-02-20
B165: 77005.9006 | D165: 3.76 | G165: 2022-02-20
B166: 77860.9006 | C166: 855 | G166: 2022-02-20
B167: 77843.8006 | D167: 17.1 | G167: 2022-02-20
B168: 137843.8006 | C168: 60000 | G168: 2022-02-21
B169: 138563.8006 | C169: 720 | G169: 2022-02-22
B170: 138549.4006 | D170: 14.4 | G170: 2022-02-22
B171: 139294.4006 | C171: 745 | G171: 2022-02-22
B172: 139279.5006 | D172: 14.9 | G172: 2022-02-22
B173: 132165.9006 | D173: 7113.6 | G173: 2022-02-22
B174: 82165.9006 | D174: 50000 | G174: 2022-02-22
B175: 112165.9006 | C175: 30000 | G175: 2022-02-23
B176: 87165.9006 | D176: 25000 | G176: 2022-02-23
B177: 87205.9006 | C177: 40 | G177: 2022-02-24
B178: 87205.1006 | D178: 0.8 | G178: 2022-02-24
B179: 88673.1006 | C179: 1468 | G179: 2022-02-24
B180: 88643.7406 | D180: 29.36 | G180: 2022-02-24
B181: 89243.7406 | C181: 600 | G181: 2022-02-27
B182: 89231.7406 | D182: 12 | G182: 2022-02-27
B183: 90296.7406 | C183: 1065 | G183: 2022-02-27
B184: 90275.4406 | D184: 21.3 | G184: 2022-02-27
B185: 75525.4406 | D185: 14750 | G185: 2022-02-27
B186: 75709.9406 | C186: 184.5 | G186: 2022-02-27
B187: 75706.2506 | D187: 3.69 | G187: 2022-02-27
B188: 191706.2506 | C188: 116000 | G188: 2022-02-27
B189: 196481.3506 | C189: 4775.1 | G189: 2022-02-28
B190: 196718.3506 | C190: 237 | G190: 2022-02-28
B191: 196713.6106 | D191: 4.74 | G191: 2022-02-28
B192: 196319.6106 | D192: 394 | G192: 2022-02-28
B193: 246319.6106 | C193: 50000 | G193: 2022-02-28
B194: 246269.6106 | D194: 50 | G194: 2022-02-28
B195: 246169.6106 | D195: 100 | G195: 2022-02-28
B196: 246154.6106 | D196: 15 | G196: 2022-02-28
B197: 246139.6106 | D197: 15 | G197: 2022-02-28
B198: 246374.8906 | C198: 235.28 | G198: 2022-02-28
B199: 276374.8906 | C199: 30000 | G199: 2022-03-01
B200: 276524.8906 | C200: 150 | G200: 2022-03-01
B201: =B200+C201-D201 -> 276521.8906 | D201: 3 | G201: 2022-03-01
B202: 276663.3906 | C202: 141.5 | G202: 2022-03-02
... 951 more rows
